[Event "Titled Tuesday Blitz January 31 Early 2023"]
[White "Kosteniuk, Alexandra"]
[Black "Kejna, Piotr"]
[WhiteFideId "4128125"]
[BlackFideId "21821704"]
[WhiteElo "2535"]
[BlackElo "2027"]
[Result "1-0"]
[Round "01"]
[TimeControl "180+2"]
[Date "2023.01.31"]
[WhiteClock "0:00:24"]
[BlackClock "0:00:06"]

1. e4 {[%clk 0:02:59]}  c5 {[%clk 0:02:59]} 2. c3 {[%clk 0:02:59]}  d5 {[%clk 0:02:59]} 3. exd5 {[%clk 0:02:59]}  Qxd5 {[%clk 0:03:00]} 4. d4 {[%clk 0:03:00]}  Nc6 {[%clk 0:02:57]} 5. Nf3 {[%clk 0:03:00]}  Bf5 {[%clk 0:02:58]} 6. Be3 {[%clk 0:02:56]}  O-O-O {[%clk 0:02:56]} 7. Nbd2 {[%clk 0:02:53]}  cxd4 {[%clk 0:02:54]} 8. cxd4 {[%clk 0:02:53]}  e6 {[%clk 0:02:48]} 9. Bc4 {[%clk 0:02:49]}  Qa5 {[%clk 0:02:44]} 10. O-O {[%clk 0:02:46]}  Nf6 {[%clk 0:02:42]} 11. a3 {[%clk 0:02:45]}  Nd5 {[%clk 0:02:32]} 12. Rc1 {[%clk 0:02:42]}  Kb8 {[%clk 0:02:30]} 13. Qb3 {[%clk 0:02:36]}  Qb6 {[%clk 0:02:22]} 14. Qa2 {[%clk 0:02:32]}  Bd6 {[%clk 0:02:09]} 15. Bxd5 {[%clk 0:02:29]}  exd5 {[%clk 0:02:09]} 16. b4 {[%clk 0:02:28]}  f6 {[%clk 0:01:59]} 17. Rfe1 {[%clk 0:02:27]}  g5 {[%clk 0:01:57]} 18. Nb3 {[%clk 0:02:27]}  h5 {[%clk 0:01:46]} 19. Nc5 {[%clk 0:02:26]}  h4 {[%clk 0:01:43]} 20. Nd2 {[%clk 0:02:17]}  g4 {[%clk 0:01:39]} 21. Ndb3 {[%clk 0:02:01]}  g3 {[%clk 0:01:25]} 22. h3 {[%clk 0:02:00]}  Rhg8 {[%clk 0:01:18]} 23. Kh1 {[%clk 0:01:37]}  Rg7 {[%clk 0:01:09]} 24. f3 {[%clk 0:01:33]}  Rdg8 {[%clk 0:00:53]} 25. Re2 {[%clk 0:01:28]}  Bxh3 {[%clk 0:00:47]} 26. gxh3 {[%clk 0:01:27]}  g2+ {[%clk 0:00:48]} 27. Kg1 {[%clk 0:01:27]}  Qc7 {[%clk 0:00:47]} 28. f4 {[%clk 0:01:18]}  Bxf4 {[%clk 0:00:47]} 29. Bxf4 {[%clk 0:01:16]}  Qxf4 {[%clk 0:00:46]} 30. Ne6 {[%clk 0:01:04]}  Qf3 {[%clk 0:00:23]} 31. Nxg7 {[%clk 0:01:01]}  Rxg7 {[%clk 0:00:21]} 32. Rxg2 {[%clk 0:01:01]}  Qe3+ {[%clk 0:00:18]} 33. Qf2 {[%clk 0:00:59]}  Rxg2+ {[%clk 0:00:17]} 34. Kxg2 {[%clk 0:01:00]}  Qxb3 {[%clk 0:00:17]} 35. Re1 {[%clk 0:00:59]}  Qxa3 {[%clk 0:00:12]} 36. b5 {[%clk 0:00:58]}  Ne7 {[%clk 0:00:08]} 37. Qf4+ {[%clk 0:00:54]}  Kc8 {[%clk 0:00:07]} 38. Rc1+ {[%clk 0:00:50]}  Kd8 {[%clk 0:00:07]} 39. Qb8+ {[%clk 0:00:48]}  Kd7 {[%clk 0:00:07]} 40. Qxb7+ {[%clk 0:00:46]}  Ke6 {[%clk 0:00:07]} 41. Re1+ {[%clk 0:00:43]}  Kf7 {[%clk 0:00:07]} 42. Qc7 {[%clk 0:00:30]}  Qb2+ {[%clk 0:00:06]} 43. Kh1 {[%clk 0:00:30]}  Qb4 {[%clk 0:00:05]} 44. Re2 {[%clk 0:00:27]}  Qb1+ {[%clk 0:00:06]} 45. Kg2 {[%clk 0:00:27]}  Qb4 {[%clk 0:00:06]} 46. Qxa7 {[%clk 0:00:24]}  Qd6 {[%clk 0:00:03]} 47. Qxe7+ {[%clk 0:00:21]}  Qxe7 {[%clk 0:00:04]} 48. Rxe7+ {[%clk 0:00:21]}  Kxe7 {[%clk 0:00:04]} 49. Kf3 {[%clk 0:00:22]}  Kd6 {[%clk 0:00:05]} 50. Kf4 {[%clk 0:00:22]}  Kc7 {[%clk 0:00:05]} 51. Kf5 {[%clk 0:00:23]}  Kb6 {[%clk 0:00:06]} 52. Kxf6 {[%clk 0:00:21]}  Kxb5 {[%clk 0:00:06]} 53. Ke6 {[%clk 0:00:21]}  Kc6 {[%clk 0:00:02]} 54. Ke5 {[%clk 0:00:22]}  Kc7 {[%clk 0:00:02]} 55. Kxd5 {[%clk 0:00:22]}  Kd7 {[%clk 0:00:02]} 56. Ke5 {[%clk 0:00:22]}  Ke7 {[%clk 0:00:03]} 57. Kf5 {[%clk 0:00:21]}  Kd6 {[%clk 0:00:03]} 58. Kg4 {[%clk 0:00:21]}  Kd5 {[%clk 0:00:03]} 59. Kxh4 {[%clk 0:00:22]}  Kxd4 {[%clk 0:00:04]} 60. Kg5 {[%clk 0:00:22]}  Ke5 {[%clk 0:00:05]} 61. h4 {[%clk 0:00:22]}  Ke6 {[%clk 0:00:05]} 62. Kg6 {[%clk 0:00:23]}  Ke7 {[%clk 0:00:06]} 63. Kg7 {[%clk 0:00:23]}  Ke6 {[%clk 0:00:06]} 64. h5 {[%clk 0:00:24]} 1-0


[Site "https://www.chess.com"]

[Event "Titled Tuesday Blitz January 31 Early 2023"]
[White "Real_OceanStorm"]
[Black "Vasques, Antonio Pedro Freixial"]
[BlackFideId "1908332"]
[WhiteElo "2720"]
[BlackElo "2214"]
[Result "1-0"]
[Round "01"]
[TimeControl "180+2"]
[Date "2023.01.31"]
[WhiteClock "0:00:26"]
[BlackClock "0:00:10"]

1. Nf3 {[%clk 0:03:00]}  Nf6 {[%clk 0:02:57]} 2. d4 {[%clk 0:03:01]}  e6 {[%clk 0:02:56]} 3. c4 {[%clk 0:03:02]}  Bb4+ {[%clk 0:02:55]} 4. Nc3 {[%clk 0:03:02]}  O-O {[%clk 0:02:53]} 5. Bd2 {[%clk 0:03:03]}  d5 {[%clk 0:02:53]} 6. e3 {[%clk 0:03:03]}  a6 {[%clk 0:02:52]} 7. a3 {[%clk 0:03:03]}  Bxc3 {[%clk 0:02:45]} 8. Bxc3 {[%clk 0:03:04]}  Ne4 {[%clk 0:02:45]} 9. Be2 {[%clk 0:03:02]}  Nd7 {[%clk 0:02:38]} 10. O-O {[%clk 0:03:01]}  Nxc3 {[%clk 0:02:34]} 11. bxc3 {[%clk 0:03:02]}  dxc4 {[%clk 0:02:33]} 12. Bxc4 {[%clk 0:03:02]}  b5 {[%clk 0:02:34]} 13. Bd3 {[%clk 0:03:02]}  Bb7 {[%clk 0:02:32]} 14. a4 {[%clk 0:02:41]}  Rb8 {[%clk 0:01:41]} 15. axb5 {[%clk 0:02:16]}  axb5 {[%clk 0:01:42]} 16. Rb1 {[%clk 0:02:17]}  c6 {[%clk 0:00:41]} 17. Qc2 {[%clk 0:01:52]}  h6 {[%clk 0:00:39]} 18. Nd2 {[%clk 0:01:43]}  Qe7 {[%clk 0:00:38]} 19. Rfc1 {[%clk 0:01:40]}  Rfc8 {[%clk 0:00:36]} 20. Rd1 {[%clk 0:01:24]}  Ba8 {[%clk 0:00:34]} 21. h3 {[%clk 0:01:23]}  c5 {[%clk 0:00:23]} 22. Bxb5 {[%clk 0:00:49]}  cxd4 {[%clk 0:00:22]} 23. exd4 {[%clk 0:00:48]}  Qg5 {[%clk 0:00:20]} 24. Bf1 {[%clk 0:00:47]}  Rxb1 {[%clk 0:00:19]} 25. Rxb1 {[%clk 0:00:48]}  Nf6 {[%clk 0:00:19]} 26. Qd3 {[%clk 0:00:38]}  Nd5 {[%clk 0:00:17]} 27. Ne4 {[%clk 0:00:31]}  Qg6 {[%clk 0:00:17]} 28. Rb3 {[%clk 0:00:27]}  Nf4 {[%clk 0:00:17]} 29. Qa6 {[%clk 0:00:27]}  Rd8 {[%clk 0:00:10]} 30. Ng3 {[%clk 0:00:26]}  h5 {[%clk 0:00:10]} 31. Qa5 {[%clk 0:00:26]}  h4 {[%clk 0:00:09]} 32. Qxd8+ {[%clk 0:00:26]}  Kh7 {[%clk 0:00:10]} 33. Qxh4+ {[%clk 0:00:26]} 1-0


[Site "https://www.chess.com"]

[Event "Titled Tuesday Blitz January 31 Early 2023"]
[White "Mindlin, Alon"]
[Black "Gressmann, Moritz"]
[WhiteFideId "2800071"]
[BlackFideId "24695084"]
[WhiteElo "2435"]
[BlackElo "2129"]
[Result "1/2-1/2"]
[Round "01"]
[TimeControl "180+2"]
[Date "2023.01.31"]
[WhiteClock "0:01:13"]
[BlackClock "0:00:46"]

1. d4 {[%clk 0:03:00]}  d5 {[%clk 0:02:59]} 2. c4 {[%clk 0:03:00]}  e6 {[%clk 0:02:59]} 3. Nc3 {[%clk 0:02:59]}  Nf6 {[%clk 0:03:00]} 4. Nf3 {[%clk 0:02:59]}  Bb4 {[%clk 0:02:59]} 5. e3 {[%clk 0:02:58]}  O-O {[%clk 0:02:59]} 6. Bd3 {[%clk 0:02:59]}  c5 {[%clk 0:02:59]} 7. O-O {[%clk 0:02:59]}  cxd4 {[%clk 0:02:58]} 8. exd4 {[%clk 0:03:00]}  Nc6 {[%clk 0:02:59]} 9. Bg5 {[%clk 0:02:59]}  h6 {[%clk 0:02:58]} 10. Bxf6 {[%clk 0:02:59]}  Qxf6 {[%clk 0:02:56]} 11. cxd5 {[%clk 0:02:59]}  Bxc3 {[%clk 0:02:56]} 12. dxc6 {[%clk 0:02:59]}  Ba5 {[%clk 0:02:51]} 13. Ne5 {[%clk 0:02:32]}  bxc6 {[%clk 0:02:37]} 14. Qh5 {[%clk 0:02:30]}  Bb6 {[%clk 0:02:34]} 15. Nxc6 {[%clk 0:02:17]}  Bb7 {[%clk 0:02:26]} 16. Be4 {[%clk 0:02:17]}  Rac8 {[%clk 0:02:20]} 17. Rac1 {[%clk 0:02:15]}  Bxc6 {[%clk 0:02:17]} 18. Bxc6 {[%clk 0:02:14]}  Bxd4 {[%clk 0:02:16]} 19. b4 {[%clk 0:02:12]}  Rfd8 {[%clk 0:02:06]} 20. b5 {[%clk 0:02:09]}  Bb6 {[%clk 0:01:39]} 21. Qe2 {[%clk 0:02:09]}  Rd6 {[%clk 0:01:36]} 22. Rfd1 {[%clk 0:02:01]}  Rcd8 {[%clk 0:01:36]} 23. Rxd6 {[%clk 0:02:01]}  Rxd6 {[%clk 0:01:36]} 24. g3 {[%clk 0:02:01]}  Qd8 {[%clk 0:01:22]} 25. Rc2 {[%clk 0:01:58]}  Rd1+ {[%clk 0:01:17]} 26. Kg2 {[%clk 0:01:58]}  Qd3 {[%clk 0:01:15]} 27. Qxd3 {[%clk 0:01:52]}  Rxd3 {[%clk 0:01:15]} 28. Be4 {[%clk 0:01:53]}  Rd8 {[%clk 0:01:14]} 29. g4 {[%clk 0:01:51]}  g6 {[%clk 0:01:14]} 30. h3 {[%clk 0:01:49]}  Kg7 {[%clk 0:01:12]} 31. Kg3 {[%clk 0:01:47]}  g5 {[%clk 0:01:07]} 32. Bf3 {[%clk 0:01:31]}  Rd4 {[%clk 0:01:01]} 33. Kg2 {[%clk 0:01:29]}  Rb4 {[%clk 0:00:55]} 34. Bc6 {[%clk 0:01:29]}  Rf4 {[%clk 0:00:55]} 35. Re2 {[%clk 0:01:28]}  Kf6 {[%clk 0:00:53]} 36. f3 {[%clk 0:01:27]}  Rb4 {[%clk 0:00:51]} 37. Kg3 {[%clk 0:01:27]}  Rd4 {[%clk 0:00:49]} 38. h4 {[%clk 0:01:26]}  Ba5 {[%clk 0:00:48]} 39. hxg5+ {[%clk 0:01:23]}  hxg5 {[%clk 0:00:49]} 40. a3 {[%clk 0:01:12]}  Rd2 {[%clk 0:00:49]} 41. Kf2 {[%clk 0:01:10]}  Bb6+ {[%clk 0:00:47]} 42. Ke1 {[%clk 0:01:10]}  Rxe2+ {[%clk 0:00:46]} 43. Kxe2 {[%clk 0:01:10]}  Ke5 {[%clk 0:00:47]} 44. Be8 {[%clk 0:01:09]}  f5 {[%clk 0:00:46]} 45. Bd7 {[%clk 0:01:08]}  fxg4 {[%clk 0:00:44]} 46. fxg4 {[%clk 0:01:09]}  Kd6 {[%clk 0:00:44]} 47. Bc8 {[%clk 0:01:08]}  Kc5 {[%clk 0:00:42]} 48. a4 {[%clk 0:01:08]}  Kb4 {[%clk 0:00:42]} 49. Bxe6 {[%clk 0:01:09]}  Kxa4 {[%clk 0:00:42]} 50. Bd7 {[%clk 0:01:09]}  Kb4 {[%clk 0:00:42]} 51. Kd3 {[%clk 0:01:10]}  Kc5 {[%clk 0:00:42]} 52. Ke4 {[%clk 0:01:11]}  Kd6 {[%clk 0:00:42]} 53. Bc6 {[%clk 0:01:10]}  Ba5 {[%clk 0:00:42]} 54. Kf5 {[%clk 0:01:10]}  Bd2 {[%clk 0:00:42]} 55. Kf6 {[%clk 0:01:10]}  Bf4 {[%clk 0:00:42]} 56. Kf7 {[%clk 0:01:10]}  Kc7 {[%clk 0:00:42]} 57. Ke7 {[%clk 0:01:11]}  Kb6 {[%clk 0:00:42]} 58. Kd7 {[%clk 0:01:11]}  Be3 {[%clk 0:00:43]} 59. Ke6 {[%clk 0:01:11]}  Bf4 {[%clk 0:00:43]} 60. Kd5 {[%clk 0:01:12]}  Bc1 {[%clk 0:00:43]} 61. Ke4 {[%clk 0:01:13]}  Bf4 {[%clk 0:00:44]} 62. Kd3 {[%clk 0:01:13]}  Bc1 {[%clk 0:00:44]} 63. Kc2 {[%clk 0:01:14]}  Bf4 {[%clk 0:00:45]} 64. Kc3 {[%clk 0:01:14]}  Bg3 {[%clk 0:00:45]} 65. Kd3 {[%clk 0:01:15]}  Bf4 {[%clk 0:00:46]} 66. Be8 {[%clk 0:01:13]} 1/2-1/2


[Site "https://www.chess.com"]

[Event "Titled Tuesday Blitz January 31 Early 2023"]
[White "Babikov, Ivan"]
[Black "Aradhya, Garg"]
[WhiteFideId "4161106"]
[BlackFideId "25006746"]
[WhiteElo "2239"]
[BlackElo "2284"]
[Result "0-1"]
[Round "01"]
[TimeControl "180+2"]
[Date "2023.01.31"]
[WhiteClock "0:00:03"]
[BlackClock "0:00:16"]

1. d4 {[%clk 0:03:00]}  d5 {[%clk 0:02:56]} 2. c4 {[%clk 0:03:00]}  c6 {[%clk 0:02:55]} 3. Nc3 {[%clk 0:02:59]}  Nf6 {[%clk 0:02:55]} 4. Nf3 {[%clk 0:03:00]}  dxc4 {[%clk 0:02:55]} 5. a4 {[%clk 0:02:56]}  Bf5 {[%clk 0:02:54]} 6. e3 {[%clk 0:02:52]}  e6 {[%clk 0:02:54]} 7. Bxc4 {[%clk 0:02:52]}  Bb4 {[%clk 0:02:55]} 8. O-O {[%clk 0:02:52]}  O-O {[%clk 0:02:55]} 9. Ne5 {[%clk 0:02:48]}  Nbd7 {[%clk 0:02:54]} 10. Nxd7 {[%clk 0:02:41]}  Qxd7 {[%clk 0:02:55]} 11. Bd3 {[%clk 0:02:37]}  e5 {[%clk 0:02:48]} 12. Bxf5 {[%clk 0:02:29]}  Qxf5 {[%clk 0:02:47]} 13. dxe5 {[%clk 0:02:30]}  Qxe5 {[%clk 0:02:48]} 14. Qb3 {[%clk 0:02:29]}  a5 {[%clk 0:02:45]} 15. Bd2 {[%clk 0:02:13]}  Rad8 {[%clk 0:02:44]} 16. Rfd1 {[%clk 0:02:11]}  Rd7 {[%clk 0:02:43]} 17. Be1 {[%clk 0:02:00]}  Bd6 {[%clk 0:02:41]} 18. g3 {[%clk 0:01:56]}  Rfd8 {[%clk 0:02:17]} 19. Ne2 {[%clk 0:01:46]}  Qh5 {[%clk 0:02:16]} 20. Nf4 {[%clk 0:01:41]}  Bxf4 {[%clk 0:02:15]} 21. Rxd7 {[%clk 0:01:41]}  Rxd7 {[%clk 0:02:15]} 22. exf4 {[%clk 0:01:38]}  h6 {[%clk 0:01:19]} 23. Qc3 {[%clk 0:01:02]}  Rd5 {[%clk 0:01:07]} 24. Qb3 {[%clk 0:00:51]}  Qh3 {[%clk 0:00:51]} 25. Qf3 {[%clk 0:00:37]}  h5 {[%clk 0:00:37]} 26. Bc3 {[%clk 0:00:33]}  Qf5 {[%clk 0:00:29]} 27. Re1 {[%clk 0:00:29]}  Rd3 {[%clk 0:00:28]} 28. Qe2 {[%clk 0:00:27]}  Rd8 {[%clk 0:00:20]} 29. Qe7 {[%clk 0:00:24]}  Rd7 {[%clk 0:00:20]} 30. Qe5 {[%clk 0:00:21]}  Qxe5 {[%clk 0:00:19]} 31. Rxe5 {[%clk 0:00:22]}  Rd5 {[%clk 0:00:19]} 32. Rxd5 {[%clk 0:00:20]}  Nxd5 {[%clk 0:00:18]} 33. Bxa5 {[%clk 0:00:21]}  f5 {[%clk 0:00:17]} 34. Kg2 {[%clk 0:00:20]}  Kf7 {[%clk 0:00:18]} 35. Kf3 {[%clk 0:00:19]}  Ke6 {[%clk 0:00:18]} 36. Bc3 {[%clk 0:00:19]}  g6 {[%clk 0:00:17]} 37. Be5 {[%clk 0:00:19]}  Nb6 {[%clk 0:00:17]} 38. b3 {[%clk 0:00:18]}  Kd5 {[%clk 0:00:17]} 39. Bc7 {[%clk 0:00:16]}  Nd7 {[%clk 0:00:17]} 40. Ke3 {[%clk 0:00:15]}  Nc5 {[%clk 0:00:17]} 41. Kd2 {[%clk 0:00:09]}  Nxb3+ {[%clk 0:00:17]} 42. Kc3 {[%clk 0:00:10]}  Nc5 {[%clk 0:00:17]} 43. a5 {[%clk 0:00:08]}  Ne4+ {[%clk 0:00:17]} 44. Kd3 {[%clk 0:00:08]}  Nxf2+ {[%clk 0:00:18]} 45. Ke2 {[%clk 0:00:08]}  Ne4 {[%clk 0:00:17]} 46. Bb6 {[%clk 0:00:08]}  c5 {[%clk 0:00:17]} 47. Kd3 {[%clk 0:00:08]}  c4+ {[%clk 0:00:17]} 48. Kc2 {[%clk 0:00:07]}  Kc6 {[%clk 0:00:18]} 49. Bd8 {[%clk 0:00:05]}  Kb5 {[%clk 0:00:18]} 50. Bc7 {[%clk 0:00:04]}  Nc5 {[%clk 0:00:18]} 51. Kc3 {[%clk 0:00:04]}  Nb3 {[%clk 0:00:18]} 52. Bd8 {[%clk 0:00:03]}  Nxa5 {[%clk 0:00:18]} 53. Kd4 {[%clk 0:00:02]}  Nc6+ {[%clk 0:00:18]} 54. Kd5 {[%clk 0:00:02]}  c3 {[%clk 0:00:17]} 55. Bf6 {[%clk 0:00:01]}  c2 {[%clk 0:00:18]} 56. Bb2 {[%clk 0:00:02]}  Kb4 {[%clk 0:00:18]} 57. Ke6 {[%clk 0:00:02]}  Kb3 {[%clk 0:00:18]} 58. Bc1 {[%clk 0:00:03]}  Nb4 {[%clk 0:00:16]} 59. Kf6 {[%clk 0:00:03]}  Nd3 {[%clk 0:00:16]} 60. Be3 {[%clk 0:00:03]}  Kc4 {[%clk 0:00:15]} 61. Kxg6 {[%clk 0:00:03]}  b5 {[%clk 0:00:16]} 0-1


[Site "https://www.chess.com"]

[Event "Titled Tuesday Blitz January 31 Early 2023"]
[White "Li, Hui"]
[Black "Mischuk, Dmitry"]
[WhiteFideId "15400310"]
[BlackFideId "14118734"]
[WhiteElo "1963"]
[BlackElo "2298"]
[Result "0-1"]
[Round "01"]
[TimeControl "180+2"]
[Date "2023.01.31"]
[WhiteClock "0:00:02"]
[BlackClock "0:00:22"]

1. e4 {[%clk 0:02:59]}  c5 {[%clk 0:02:57]} 2. Nf3 {[%clk 0:02:59]}  d6 {[%clk 0:02:57]} 3. d4 {[%clk 0:02:59]}  cxd4 {[%clk 0:02:57]} 4. Nxd4 {[%clk 0:03:00]}  Nf6 {[%clk 0:02:57]} 5. Nc3 {[%clk 0:03:00]}  g6 {[%clk 0:02:57]} 6. Be3 {[%clk 0:03:00]}  Bg7 {[%clk 0:02:57]} 7. f3 {[%clk 0:03:00]}  O-O {[%clk 0:02:57]} 8. Qd2 {[%clk 0:03:01]}  Nc6 {[%clk 0:02:57]} 9. O-O-O {[%clk 0:03:01]}  d5 {[%clk 0:02:57]} 10. Kb1 {[%clk 0:03:01]}  Nxd4 {[%clk 0:02:53]} 11. e5 {[%clk 0:03:01]}  Nf5 {[%clk 0:02:52]} 12. exf6 {[%clk 0:03:01]}  exf6 {[%clk 0:02:53]} 13. Bc5 {[%clk 0:03:01]}  d4 {[%clk 0:02:52]} 14. Bxf8 {[%clk 0:03:01]}  Qxf8 {[%clk 0:02:50]} 15. Nb5 {[%clk 0:03:01]}  Ne3 {[%clk 0:02:47]} 16. Re1 {[%clk 0:03:01]}  f5 {[%clk 0:02:45]} 17. f4 {[%clk 0:03:01]}  Qc5 {[%clk 0:02:26]} 18. c3 {[%clk 0:03:00]}  Nxf1 {[%clk 0:02:20]} 19. Re8+ {[%clk 0:02:57]}  Bf8 {[%clk 0:02:15]} 20. Qxd4 {[%clk 0:02:57]}  Qxb5 {[%clk 0:01:46]} 21. Qd8 {[%clk 0:02:57]}  Nd2+ {[%clk 0:01:40]} 22. Kc1 {[%clk 0:02:22]}  Qxe8 {[%clk 0:00:48]} 23. Qxe8 {[%clk 0:02:22]}  Ne4 {[%clk 0:00:49]} 24. Rd1 {[%clk 0:02:11]}  Nf6 {[%clk 0:00:44]} 25. Qd8 {[%clk 0:02:10]}  Kg7 {[%clk 0:00:43]} 26. g3 {[%clk 0:01:21]}  b6 {[%clk 0:00:41]} 27. Qc7 {[%clk 0:01:13]}  Be6 {[%clk 0:00:41]} 28. Rd8 {[%clk 0:01:05]}  Ne8 {[%clk 0:00:21]} 29. Qe5+ {[%clk 0:00:41]}  f6 {[%clk 0:00:22]} 30. Rxe8 {[%clk 0:00:16]}  Rxe8 {[%clk 0:00:21]} 31. Qc7+ {[%clk 0:00:13]}  Re7 {[%clk 0:00:22]} 32. Qc6 {[%clk 0:00:13]}  Bxa2 {[%clk 0:00:22]} 33. Qa4 {[%clk 0:00:13]}  Bf7 {[%clk 0:00:22]} 34. Qc6 {[%clk 0:00:13]}  h5 {[%clk 0:00:21]} 35. h3 {[%clk 0:00:13]}  Re6 {[%clk 0:00:21]} 36. Qc7 {[%clk 0:00:12]}  a5 {[%clk 0:00:21]} 37. g4 {[%clk 0:00:13]}  hxg4 {[%clk 0:00:21]} 38. hxg4 {[%clk 0:00:14]}  fxg4 {[%clk 0:00:22]} 39. c4 {[%clk 0:00:12]}  Bc5 {[%clk 0:00:21]} 40. f5 {[%clk 0:00:08]}  gxf5 {[%clk 0:00:21]} 41. Qf4 {[%clk 0:00:09]}  Kg6 {[%clk 0:00:21]} 42. Qb8 {[%clk 0:00:07]}  f4 {[%clk 0:00:19]} 43. Kc2 {[%clk 0:00:06]}  Be3 {[%clk 0:00:19]} 44. Qh8 {[%clk 0:00:03]}  g3 {[%clk 0:00:19]} 45. Qh3 {[%clk 0:00:02]}  Re5 {[%clk 0:00:20]} 46. Qg4+ {[%clk 0:00:02]}  Rg5 {[%clk 0:00:21]} 47. Qf3 {[%clk 0:00:02]}  Be6 {[%clk 0:00:21]} 48. Qe4+ {[%clk 0:00:02]}  Bf5 {[%clk 0:00:22]} 0-1


[Site "https://www.chess.com"]

[Event "Titled Tuesday Blitz January 31 Early 2023"]
[White "Rengifo Blancas, Renzo Jhonathan"]
[Black "Sattarov, Bobir"]
[WhiteFideId "3807185"]
[BlackFideId "14203081"]
[WhiteElo "2131"]
[BlackElo "2366"]
[Result "1-0"]
[Round "01"]
[TimeControl "180+2"]
[Date "2023.01.31"]
[WhiteClock "0:00:44"]
[BlackClock "0:00:51"]

1. d4 {[%clk 0:02:58]}  Nf6 {[%clk 0:02:56]} 2. c4 {[%clk 0:02:58]}  e6 {[%clk 0:02:56]} 3. Nc3 {[%clk 0:02:58]}  Bb4 {[%clk 0:02:56]} 4. Nf3 {[%clk 0:02:57]}  O-O {[%clk 0:02:54]} 5. g3 {[%clk 0:02:56]}  d5 {[%clk 0:02:50]} 6. Bg2 {[%clk 0:02:56]}  dxc4 {[%clk 0:02:46]} 7. O-O {[%clk 0:02:56]}  a6 {[%clk 0:02:44]} 8. Ne5 {[%clk 0:02:56]}  c5 {[%clk 0:02:37]} 9. dxc5 {[%clk 0:02:54]}  Bxc5 {[%clk 0:02:22]} 10. Nxc4 {[%clk 0:02:54]}  Nc6 {[%clk 0:02:19]} 11. Be3 {[%clk 0:02:54]}  Bxe3 {[%clk 0:02:16]} 12. Nxe3 {[%clk 0:02:53]}  Qe7 {[%clk 0:02:11]} 13. Bxc6 {[%clk 0:02:48]}  bxc6 {[%clk 0:02:10]} 14. Qa4 {[%clk 0:02:49]}  Rb8 {[%clk 0:02:07]} 15. Rab1 {[%clk 0:02:45]}  c5 {[%clk 0:02:05]} 16. Rfc1 {[%clk 0:02:44]}  h5 {[%clk 0:01:58]} 17. a3 {[%clk 0:02:41]}  Bd7 {[%clk 0:01:49]} 18. Qxa6 {[%clk 0:02:39]}  h4 {[%clk 0:01:50]} 19. Qc4 {[%clk 0:02:36]}  hxg3 {[%clk 0:01:39]} 20. hxg3 {[%clk 0:02:36]}  Rfc8 {[%clk 0:01:38]} 21. Rd1 {[%clk 0:02:22]}  Bc6 {[%clk 0:01:37]} 22. Qf4 {[%clk 0:02:11]}  Ba8 {[%clk 0:01:34]} 23. Qd6 {[%clk 0:02:10]}  Qb7 {[%clk 0:01:32]} 24. f3 {[%clk 0:02:10]}  c4 {[%clk 0:01:20]} 25. Kf2 {[%clk 0:02:06]}  Qa7 {[%clk 0:01:16]} 26. Qd4 {[%clk 0:02:04]}  Qa6 {[%clk 0:01:15]} 27. Qd6 {[%clk 0:01:53]}  Rb6 {[%clk 0:01:14]} 28. Qe7 {[%clk 0:01:45]}  Rbb8 {[%clk 0:01:06]} 29. Rd6 {[%clk 0:01:35]}  Qa5 {[%clk 0:01:03]} 30. Rd4 {[%clk 0:01:20]}  Qg5 {[%clk 0:01:00]} 31. Rbd1 {[%clk 0:00:57]}  Ng4+ {[%clk 0:00:54]} 32. Rxg4 {[%clk 0:00:47]}  Qxe7 {[%clk 0:00:55]} 33. Rgd4 {[%clk 0:00:44]}  Rd8 {[%clk 0:00:51]} 34. Nxc4 {[%clk 0:00:44]} 1-0


[Site "https://www.chess.com"]

[Event "Titled Tuesday Blitz January 31 Early 2023"]
[White "Pourkashiyan, Atousa"]
[Black "Ashraf, Artin"]
[WhiteFideId "12502014"]
[BlackFideId "22514805"]
[WhiteElo "2282"]
[BlackElo "2314"]
[Result "0-1"]
[Round "01"]
[TimeControl "180+2"]
[Date "2023.01.31"]
[WhiteClock "0:00:07"]
[BlackClock "0:00:11"]

1. e4 {[%clk 0:02:59]}  c5 {[%clk 0:02:58]} 2. Nf3 {[%clk 0:02:59]}  d6 {[%clk 0:02:59]} 3. d4 {[%clk 0:02:59]}  cxd4 {[%clk 0:03:00]} 4. Nxd4 {[%clk 0:03:00]}  Nf6 {[%clk 0:03:00]} 5. Nc3 {[%clk 0:03:00]}  a6 {[%clk 0:03:00]} 6. Be2 {[%clk 0:02:55]}  e5 {[%clk 0:02:59]} 7. Nb3 {[%clk 0:02:52]}  Be7 {[%clk 0:02:58]} 8. O-O {[%clk 0:02:52]}  O-O {[%clk 0:02:58]} 9. Be3 {[%clk 0:02:50]}  Be6 {[%clk 0:02:56]} 10. Qd3 {[%clk 0:02:39]}  Nbd7 {[%clk 0:02:45]} 11. a4 {[%clk 0:02:22]}  Rc8 {[%clk 0:01:56]} 12. a5 {[%clk 0:02:16]}  Qc7 {[%clk 0:01:53]} 13. Rfd1 {[%clk 0:02:05]}  Rfd8 {[%clk 0:01:42]} 14. Bf3 {[%clk 0:01:34]}  Bc4 {[%clk 0:01:11]} 15. Qd2 {[%clk 0:01:30]}  h6 {[%clk 0:01:10]} 16. h3 {[%clk 0:01:17]}  Qc6 {[%clk 0:01:09]} 17. Rac1 {[%clk 0:00:48]}  Re8 {[%clk 0:00:49]} 18. Nd5 {[%clk 0:00:35]}  Bf8 {[%clk 0:00:39]} 19. Qb4 {[%clk 0:00:10]}  Bxd5 {[%clk 0:00:17]} 20. exd5 {[%clk 0:00:10]}  Qc7 {[%clk 0:00:18]} 21. c4 {[%clk 0:00:05]}  Nc5 {[%clk 0:00:16]} 22. Nxc5 {[%clk 0:00:04]}  dxc5 {[%clk 0:00:17]} 23. Qd2 {[%clk 0:00:04]}  Bd6 {[%clk 0:00:14]} 24. Qc2 {[%clk 0:00:03]}  e4 {[%clk 0:00:15]} 25. Bg4 {[%clk 0:00:03]}  Rcd8 {[%clk 0:00:13]} 26. Ra1 {[%clk 0:00:02]}  Qe7 {[%clk 0:00:12]} 27. b3 {[%clk 0:00:03]}  h5 {[%clk 0:00:12]} 28. Be2 {[%clk 0:00:03]}  h4 {[%clk 0:00:11]} 29. Kf1 {[%clk 0:00:01]}  Qe5 {[%clk 0:00:11]} 30. Bg4 {[%clk 0:00:02]}  Qh2 {[%clk 0:00:10]} 31. Ke2 {[%clk 0:00:02]}  Nxg4 {[%clk 0:00:10]} 32. hxg4 {[%clk 0:00:02]}  Qxg2 {[%clk 0:00:11]} 33. Rg1 {[%clk 0:00:03]}  Qf3+ {[%clk 0:00:11]} 34. Kd2 {[%clk 0:00:03]}  h3 {[%clk 0:00:12]} 35. g5 {[%clk 0:00:03]}  h2 {[%clk 0:00:11]} 36. Rh1 {[%clk 0:00:03]}  Bf4 {[%clk 0:00:11]} 37. Qd1 {[%clk 0:00:03]}  Qxf2+ {[%clk 0:00:11]} 38. Qe2 {[%clk 0:00:03]}  Bxe3+ {[%clk 0:00:11]} 39. Kd1 {[%clk 0:00:03]}  Qxe2+ {[%clk 0:00:11]} 40. Kxe2 {[%clk 0:00:03]}  Bd4 {[%clk 0:00:10]} 41. Rad1 {[%clk 0:00:03]}  Re5 {[%clk 0:00:08]} 42. Rxh2 {[%clk 0:00:03]}  Rxg5 {[%clk 0:00:08]} 43. Rh4 {[%clk 0:00:04]}  Rg2+ {[%clk 0:00:07]} 44. Kf1 {[%clk 0:00:04]}  Rg1+ {[%clk 0:00:08]} 45. Ke2 {[%clk 0:00:05]}  Rxd1 {[%clk 0:00:09]} 46. Kxd1 {[%clk 0:00:05]}  Re8 {[%clk 0:00:10]} 47. Ke2 {[%clk 0:00:06]}  f5 {[%clk 0:00:10]} 48. Rh5 {[%clk 0:00:06]}  g6 {[%clk 0:00:10]} 49. Rg5 {[%clk 0:00:07]}  Kg7 {[%clk 0:00:11]} 50. Rg2 {[%clk 0:00:07]}  Rh8 {[%clk 0:00:11]} 0-1


[Site "https://www.chess.com"]